[Event "Titled Tuesday Blitz August 15 Early 2023"]
[White "Mesa Cruz, Juan Carlos"]
[Black "Cardenas Carbajal, Nilson"]
[WhiteFideId "6423400"]
[BlackFideId "8401128"]
[WhiteElo "2424"]
[BlackElo "2129"]
[Result "1/2-1/2"]
[Round "7"]
[TimeControl "180+1"]
[Date "2023.08.15"]
[WhiteClock "0:01:14"]
[BlackClock "0:00:18"]
[Board "193"]

1. d4 {[%clk 0:02:56]}  e6 {[%clk 0:02:57]} 2. Nf3 {[%clk 0:02:55]}  d5 {[%clk 0:02:58]} 3. g3 {[%clk 0:02:55]}  Nf6 {[%clk 0:02:57]} 4. Bg2 {[%clk 0:02:55]}  c5 {[%clk 0:02:49]} 5. c3 {[%clk 0:02:52]}  Nc6 {[%clk 0:02:49]} 6. O-O {[%clk 0:02:51]}  Be7 {[%clk 0:02:48]} 7. Nbd2 {[%clk 0:02:51]}  O-O {[%clk 0:02:48]} 8. b3 {[%clk 0:02:50]}  b6 {[%clk 0:02:48]} 9. Bb2 {[%clk 0:02:50]}  Ba6 {[%clk 0:02:48]} 10. Re1 {[%clk 0:02:50]}  Rc8 {[%clk 0:02:48]} 11. e4 {[%clk 0:02:49]}  dxe4 {[%clk 0:02:46]} 12. Nxe4 {[%clk 0:02:50]}  cxd4 {[%clk 0:02:41]} 13. Nxd4 {[%clk 0:02:29]}  Nxd4 {[%clk 0:02:37]} 14. Nxf6+ {[%clk 0:02:27]}  Bxf6 {[%clk 0:02:35]} 15. cxd4 {[%clk 0:02:27]}  Qd7 {[%clk 0:02:23]} 16. Rc1 {[%clk 0:02:25]}  Rxc1 {[%clk 0:02:20]} 17. Qxc1 {[%clk 0:02:26]}  Bxd4 {[%clk 0:02:07]} 18. Bxd4 {[%clk 0:02:21]}  Qxd4 {[%clk 0:02:06]} 19. Qa3 {[%clk 0:02:13]}  Qc3 {[%clk 0:01:50]} 20. Rc1 {[%clk 0:02:01]}  Qa5 {[%clk 0:01:37]} 21. Qxa5 {[%clk 0:01:55]}  bxa5 {[%clk 0:01:36]} 22. Bf1 {[%clk 0:01:56]}  Rc8 {[%clk 0:01:25]} 23. Rd1 {[%clk 0:01:49]}  Bxf1 {[%clk 0:01:08]} 24. Kxf1 {[%clk 0:01:50]}  h6 {[%clk 0:01:08]} 25. Rd7 {[%clk 0:01:50]}  Rc2 {[%clk 0:01:06]} 26. Rxa7 {[%clk 0:01:31]}  Rxa2 {[%clk 0:01:03]} 27. b4 {[%clk 0:01:31]}  a4 {[%clk 0:01:01]} 28. b5 {[%clk 0:01:31]}  Ra1+ {[%clk 0:01:01]} 29. Ke2 {[%clk 0:01:31]}  a3 {[%clk 0:01:02]} 30. b6 {[%clk 0:01:30]}  a2 {[%clk 0:00:59]} 31. b7 {[%clk 0:01:30]}  Rb1 {[%clk 0:00:58]} 32. Ra8+ {[%clk 0:01:25]}  Kh7 {[%clk 0:00:57]} 33. Rxa2 {[%clk 0:01:24]}  Rxb7 {[%clk 0:00:56]} 34. h4 {[%clk 0:01:24]}  g6 {[%clk 0:00:54]} 35. Kf3 {[%clk 0:01:24]}  Rb4 {[%clk 0:00:53]} 36. Rc2 {[%clk 0:01:24]}  Kg7 {[%clk 0:00:53]} 37. Rc5 {[%clk 0:01:24]}  Rb3+ {[%clk 0:00:52]} 38. Ke2 {[%clk 0:01:23]}  Kf6 {[%clk 0:00:51]} 39. Ra5 {[%clk 0:01:23]}  g5 {[%clk 0:00:50]} 40. hxg5+ {[%clk 0:01:22]}  hxg5 {[%clk 0:00:51]} 41. Rc5 {[%clk 0:01:22]}  e5 {[%clk 0:00:44]} 42. g4 {[%clk 0:01:20]}  Rb4 {[%clk 0:00:41]} 43. f3 {[%clk 0:01:19]}  e4 {[%clk 0:00:38]} 44. Rf5+ {[%clk 0:01:19]}  Kg6 {[%clk 0:00:36]} 45. Ke3 {[%clk 0:01:18]}  exf3 {[%clk 0:00:36]} 46. Kxf3 {[%clk 0:01:18]}  f6 {[%clk 0:00:31]} 47. Kg3 {[%clk 0:01:18]}  Re4 {[%clk 0:00:31]} 48. Kf3 {[%clk 0:01:17]}  Re5 {[%clk 0:00:26]} 49. Rxe5 {[%clk 0:01:15]}  fxe5 {[%clk 0:00:27]} 50. Ke4 {[%clk 0:01:16]}  Kf6 {[%clk 0:00:27]} 51. Kd5 {[%clk 0:01:16]}  e4 {[%clk 0:00:18]} 52. Kxe4 {[%clk 0:01:14]}  Ke6 {[%clk 0:00:19]} 53. Kd4 {[%clk 0:01:14]}  Kd6 {[%clk 0:00:19]} 54. Ke4 {[%clk 0:01:14]}  Ke6 {[%clk 0:00:19]} 55. Kd3 {[%clk 0:01:14]}  Ke5 {[%clk 0:00:19]} 56. Ke3 {[%clk 0:01:15]}  Kd5 {[%clk 0:00:19]} 57. Kd3 {[%clk 0:01:15]}  Ke5 {[%clk 0:00:19]} 58. Ke3 {[%clk 0:01:15]}  Kd5 {[%clk 0:00:19]} 59. Kf3 {[%clk 0:01:15]}  Kd4 {[%clk 0:00:18]} 60. Kf2 {[%clk 0:01:14]}  Ke4 {[%clk 0:00:18]} 61. Kg3 {[%clk 0:01:14]}  Ke3 {[%clk 0:00:18]} 62. Kh3 {[%clk 0:01:13]}  Kf4 {[%clk 0:00:19]} 63. Kh2 {[%clk 0:01:13]}  Kf3 {[%clk 0:00:17]} 64. Kh3 {[%clk 0:01:12]}  Kf4 {[%clk 0:00:17]} 65. Kh2 {[%clk 0:01:12]}  Kxg4 {[%clk 0:00:18]} 66. Kg2 {[%clk 0:01:13]}  Kf4 {[%clk 0:00:18]} 67. Kf2 {[%clk 0:01:13]}  Kg4 {[%clk 0:00:18]} 68. Kg2 {[%clk 0:01:13]}  Kf4 {[%clk 0:00:18]} 69. Kf2 {[%clk 0:01:13]}  Kg4 {[%clk 0:00:18]} 70. Kg2 {[%clk 0:01:14]} 1/2-1/2


[Site "https://www.chess.com"]

[Event "Titled Tuesday Blitz August 15 Early 2023"]
[White "Bortnyk, Olexandr"]
[Black "Fedoseev, Vladimir"]
[WhiteFideId "14120828"]
[BlackFideId "24130737"]
[WhiteElo "3103"]
[BlackElo "3116"]
[Result "1/2-1/2"]
[Round "8"]
[TimeControl "180+1"]
[Date "2023.08.15"]
[WhiteClock "0:00:03"]
[BlackClock "0:00:06"]
[Board "1"]

1. d4 {[%clk 0:03:00]}  Nf6 {[%clk 0:02:50]} 2. Nc3 {[%clk 0:03:00]}  g6 {[%clk 0:02:48]} 3. e4 {[%clk 0:02:56]}  d6 {[%clk 0:02:48]} 4. Bg5 {[%clk 0:02:57]}  Bg7 {[%clk 0:02:47]} 5. Qd2 {[%clk 0:02:57]}  h6 {[%clk 0:02:44]} 6. Bh4 {[%clk 0:02:57]}  g5 {[%clk 0:02:42]} 7. Bg3 {[%clk 0:02:57]}  Nh5 {[%clk 0:02:43]} 8. O-O-O {[%clk 0:02:55]}  Nc6 {[%clk 0:02:39]} 9. Qe3 {[%clk 0:02:48]}  e5 {[%clk 0:02:20]} 10. dxe5 {[%clk 0:02:45]}  Nxe5 {[%clk 0:02:19]} 11. Be2 {[%clk 0:02:43]}  Nf4 {[%clk 0:02:12]} 12. Bxf4 {[%clk 0:02:36]}  gxf4 {[%clk 0:02:12]} 13. Qd2 {[%clk 0:02:28]}  Be6 {[%clk 0:02:00]} 14. Kb1 {[%clk 0:02:26]}  Qg5 {[%clk 0:01:54]} 15. Nb5 {[%clk 0:01:44]}  O-O-O {[%clk 0:01:42]} 16. Qa5 {[%clk 0:01:35]}  Rd7 {[%clk 0:01:28]} 17. Qxa7 {[%clk 0:01:30]}  Kd8 {[%clk 0:01:28]} 18. Nf3 {[%clk 0:01:19]}  Nxf3 {[%clk 0:01:15]} 19. gxf3 {[%clk 0:01:20]}  Ke7 {[%clk 0:01:15]} 20. Rhg1 {[%clk 0:01:10]}  Qe5 {[%clk 0:01:14]} 21. c3 {[%clk 0:01:00]}  c5 {[%clk 0:01:03]} 22. Rd2 {[%clk 0:00:28]}  Bf6 {[%clk 0:00:58]} 23. Rgd1 {[%clk 0:00:27]}  Rhd8 {[%clk 0:00:54]} 24. Qa4 {[%clk 0:00:27]}  d5 {[%clk 0:00:50]} 25. exd5 {[%clk 0:00:21]}  Rxd5 {[%clk 0:00:42]} 26. Rxd5 {[%clk 0:00:20]}  Bxd5 {[%clk 0:00:43]} 27. Qc2 {[%clk 0:00:17]}  Bh4 {[%clk 0:00:39]} 28. c4 {[%clk 0:00:15]}  Be6 {[%clk 0:00:30]} 29. Rxd8 {[%clk 0:00:14]}  Kxd8 {[%clk 0:00:31]} 30. Qd2+ {[%clk 0:00:08]}  Ke7 {[%clk 0:00:31]} 31. Bd3 {[%clk 0:00:09]}  Qg5 {[%clk 0:00:24]} 32. Nc3 {[%clk 0:00:07]}  Qg1+ {[%clk 0:00:21]} 33. Kc2 {[%clk 0:00:08]}  Qxh2 {[%clk 0:00:21]} 34. Ne4 {[%clk 0:00:08]}  b6 {[%clk 0:00:19]} 35. Be2 {[%clk 0:00:07]}  Kf8 {[%clk 0:00:18]} 36. Qd6+ {[%clk 0:00:07]}  Kg7 {[%clk 0:00:18]} 37. Qxb6 {[%clk 0:00:07]}  Bxf2 {[%clk 0:00:19]} 38. Qd6 {[%clk 0:00:02]}  Bd4 {[%clk 0:00:09]} 39. Kd1 {[%clk 0:00:03]}  Qg1+ {[%clk 0:00:08]} 40. Kc2 {[%clk 0:00:03]}  Qe3 {[%clk 0:00:08]} 41. Kd1 {[%clk 0:00:04]}  Bxb2 {[%clk 0:00:07]} 42. Qd2 {[%clk 0:00:03]}  Bd4 {[%clk 0:00:06]} 43. Qxe3 {[%clk 0:00:04]}  fxe3 {[%clk 0:00:07]} 44. a4 {[%clk 0:00:03]}  Bc8 {[%clk 0:00:05]} 45. a5 {[%clk 0:00:02]}  Ba6 {[%clk 0:00:06]} 46. Ke1 {[%clk 0:00:02]}  f5 {[%clk 0:00:06]} 47. Nd6 {[%clk 0:00:02]}  Kf6 {[%clk 0:00:06]} 48. Bd3 {[%clk 0:00:02]}  f4 {[%clk 0:00:06]} 49. Kf1 {[%clk 0:00:02]}  Ke6 {[%clk 0:00:05]} 50. Ne4 {[%clk 0:00:03]}  Ke5 {[%clk 0:00:05]} 51. Kg2 {[%clk 0:00:03]}  Bb7 {[%clk 0:00:05]} 52. Be2 {[%clk 0:00:01]}  Ba6 {[%clk 0:00:04]} 53. Bd3 {[%clk 0:00:02]}  h5 {[%clk 0:00:05]} 54. Kh3 {[%clk 0:00:02]}  Bc8+ {[%clk 0:00:05]} 55. Kh4 {[%clk 0:00:02]}  Bb2 {[%clk 0:00:05]} 56. Kxh5 {[%clk 0:00:02]}  Ba3 {[%clk 0:00:06]} 57. Kg5 {[%clk 0:00:01]}  Bb4 {[%clk 0:00:07]} 58. Be2 {[%clk 0:00:02]}  Bxa5 {[%clk 0:00:06]} 59. Nxc5 {[%clk 0:00:02]}  Bc7 {[%clk 0:00:06]} 60. Nd3+ {[%clk 0:00:02]}  Kd4 {[%clk 0:00:07]} 61. Nxf4 {[%clk 0:00:03]}  Bxf4+ {[%clk 0:00:06]} 62. Kxf4 {[%clk 0:00:04]}  Ba6 {[%clk 0:00:06]} 63. Bf1 {[%clk 0:00:03]}  Bb7 {[%clk 0:00:06]} 64. c5 {[%clk 0:00:02]}  Kxc5 {[%clk 0:00:05]} 65. Kxe3 {[%clk 0:00:03]}  Bxf3 {[%clk 0:00:06]} 1/2-1/2


[Site "https://www.chess.com"]

[Event "Titled Tuesday Blitz August 15 Early 2023"]
[White "Nihal Sarin"]
[Black "Firouzja, Alireza"]
[WhiteFideId "25092340"]
[BlackFideId "12573981"]
[WhiteElo "3145"]
[BlackElo "3109"]
[Result "1-0"]
[Round "8"]
[TimeControl "180+1"]
[Date "2023.08.15"]
[WhiteClock "0:00:10"]
[BlackClock "0:00:00"]
[Board "2"]

1. e4 {[%clk 0:03:00]}  c5 {[%clk 0:02:59]} 2. Nf3 {[%clk 0:03:00]}  d6 {[%clk 0:03:00]} 3. Bb5+ {[%clk 0:02:57]}  Nd7 {[%clk 0:03:00]} 4. a4 {[%clk 0:02:57]}  Nf6 {[%clk 0:02:59]} 5. Nc3 {[%clk 0:02:57]}  e6 {[%clk 0:02:57]} 6. O-O {[%clk 0:02:57]}  a6 {[%clk 0:02:57]} 7. Be2 {[%clk 0:02:57]}  b6 {[%clk 0:02:57]} 8. d4 {[%clk 0:02:54]}  cxd4 {[%clk 0:02:57]} 9. Qxd4 {[%clk 0:02:55]}  Bb7 {[%clk 0:02:57]} 10. Rd1 {[%clk 0:02:55]}  Be7 {[%clk 0:02:48]} 11. Nd2 {[%clk 0:02:55]}  Ne5 {[%clk 0:02:44]} 12. Nc4 {[%clk 0:02:53]}  Nxc4 {[%clk 0:02:40]} 13. Bxc4 {[%clk 0:02:52]}  O-O {[%clk 0:02:38]} 14. h3 {[%clk 0:02:51]}  Rc8 {[%clk 0:02:37]} 15. Be3 {[%clk 0:02:51]}  Nd7 {[%clk 0:02:30]} 16. Be2 {[%clk 0:02:51]}  Qc7 {[%clk 0:02:29]} 17. Qd2 {[%clk 0:02:50]}  Nc5 {[%clk 0:02:26]} 18. Bf3 {[%clk 0:02:49]}  Rfd8 {[%clk 0:02:25]} 19. Bd4 {[%clk 0:02:48]}  Nd7 {[%clk 0:02:20]} 20. Rac1 {[%clk 0:02:47]}  h6 {[%clk 0:02:20]} 21. Be2 {[%clk 0:02:42]}  Bg5 {[%clk 0:02:08]} 22. Be3 {[%clk 0:02:41]}  Bxe3 {[%clk 0:02:08]} 23. Qxe3 {[%clk 0:02:41]}  Qc5 {[%clk 0:02:08]} 24. Qd4 {[%clk 0:02:32]}  Ne5 {[%clk 0:02:05]} 25. f4 {[%clk 0:02:27]}  Nc6 {[%clk 0:02:02]} 26. Qxc5 {[%clk 0:02:27]}  dxc5 {[%clk 0:01:58]} 27. e5 {[%clk 0:02:21]}  Nb4 {[%clk 0:01:55]} 28. Kf2 {[%clk 0:02:18]}  Rd4 {[%clk 0:01:50]} 29. g3 {[%clk 0:02:08]}  Rcd8 {[%clk 0:01:47]} 30. Ke1 {[%clk 0:02:02]}  g5 {[%clk 0:01:43]} 31. Rxd4 {[%clk 0:01:35]}  Rxd4 {[%clk 0:01:37]} 32. Nd1 {[%clk 0:01:21]}  gxf4 {[%clk 0:01:33]} 33. c3 {[%clk 0:01:21]}  Nd3+ {[%clk 0:01:33]} 34. Bxd3 {[%clk 0:01:22]}  Rxd3 {[%clk 0:01:34]} 35. gxf4 {[%clk 0:01:23]}  Rf3 {[%clk 0:01:10]} 36. Nf2 {[%clk 0:01:21]}  Rxf4 {[%clk 0:01:10]} 37. Rd1 {[%clk 0:01:22]}  Bd5 {[%clk 0:01:03]} 38. b3 {[%clk 0:01:21]}  Bxb3 {[%clk 0:00:57]} 39. Rd6 {[%clk 0:01:22]}  Bxa4 {[%clk 0:00:54]} 40. Rxb6 {[%clk 0:01:23]}  Bb5 {[%clk 0:00:53]} 41. Rb7 {[%clk 0:01:21]}  Rf5 {[%clk 0:00:49]} 42. Rc7 {[%clk 0:01:01]}  Rxe5+ {[%clk 0:00:49]} 43. Kd1 {[%clk 0:01:02]}  Kg7 {[%clk 0:00:47]} 44. Ng4 {[%clk 0:00:58]}  Rh5 {[%clk 0:00:42]} 45. Kd2 {[%clk 0:00:57]}  Rxh3 {[%clk 0:00:37]} 46. Rxc5 {[%clk 0:00:56]}  Rg3 {[%clk 0:00:34]} 47. Ne3 {[%clk 0:00:53]}  f5 {[%clk 0:00:24]} 48. c4 {[%clk 0:00:46]}  Be8 {[%clk 0:00:20]} 49. Rc8 {[%clk 0:00:42]}  f4 {[%clk 0:00:18]} 50. Rxe8 {[%clk 0:00:30]}  Rxe3 {[%clk 0:00:18]} 51. c5 {[%clk 0:00:31]}  Kf7 {[%clk 0:00:19]} 52. Rh8 {[%clk 0:00:25]}  Re5 {[%clk 0:00:19]} 53. c6 {[%clk 0:00:25]}  Kg7 {[%clk 0:00:07]} 54. c7 {[%clk 0:00:24]}  Rd5+ {[%clk 0:00:06]} 55. Ke2 {[%clk 0:00:21]}  Kxh8 {[%clk 0:00:06]} 56. c8=Q+ {[%clk 0:00:20]}  Kg7 {[%clk 0:00:07]} 57. Qxe6 {[%clk 0:00:21]}  Rg5 {[%clk 0:00:07]} 58. Kf3 {[%clk 0:00:20]}  a5 {[%clk 0:00:07]} 59. Kxf4 {[%clk 0:00:20]}  Kh7 {[%clk 0:00:05]} 60. Qf7+ {[%clk 0:00:20]}  Kh8 {[%clk 0:00:04]} 61. Qa7 {[%clk 0:00:19]}  Kg8 {[%clk 0:00:03]} 62. Qe7 {[%clk 0:00:18]}  Kh8 {[%clk 0:00:03]} 63. Qf7 {[%clk 0:00:18]}  Rg7 {[%clk 0:00:02]} 64. Qf8+ {[%clk 0:00:18]}  Kh7 {[%clk 0:00:02]} 65. Qf5+ {[%clk 0:00:18]}  Kh8 {[%clk 0:00:02]} 66. Qc8+ {[%clk 0:00:09]}  Kh7 {[%clk 0:00:02]} 67. Qc2+ {[%clk 0:00:09]}  Kh8 {[%clk 0:00:00]} 68. Kf5 {[%clk 0:00:10]} 1-0


[Site "https://www.chess.com"]

[Event "Titled Tuesday Blitz August 15 Early 2023"]
[White "Lagarde, Maxime"]
[Black "Naroditsky, Daniel"]
[WhiteFideId "662399"]
[BlackFideId "2026961"]
[WhiteElo "2877"]
[BlackElo "3183"]
[Result "1/2-1/2"]
[Round "8"]
[TimeControl "180+1"]
[Date "2023.08.15"]
[WhiteClock "0:00:04"]
[BlackClock "0:00:08"]
[Board "9"]

1. d4 {[%clk 0:03:00]}  Nf6 {[%clk 0:03:00]} 2. Bg5 {[%clk 0:03:00]}  Ne4 {[%clk 0:03:01]} 3. h4 {[%clk 0:02:59]}  d5 {[%clk 0:02:46]} 4. Nd2 {[%clk 0:02:57]}  Nf6 {[%clk 0:02:41]} 5. Ngf3 {[%clk 0:02:54]}  c5 {[%clk 0:02:39]} 6. e3 {[%clk 0:02:53]}  Nc6 {[%clk 0:02:36]} 7. c3 {[%clk 0:02:46]}  Bf5 {[%clk 0:02:26]} 8. Qb3 {[%clk 0:02:44]}  Qc8 {[%clk 0:02:26]} 9. dxc5 {[%clk 0:02:36]}  e5 {[%clk 0:02:02]} 10. Bb5 {[%clk 0:02:28]}  Qc7 {[%clk 0:01:54]} 11. Ba4 {[%clk 0:01:51]}  Bxc5 {[%clk 0:01:25]} 12. Bxf6 {[%clk 0:01:37]}  gxf6 {[%clk 0:01:24]} 13. Qxd5 {[%clk 0:01:38]}  Be7 {[%clk 0:01:18]} 14. Nd4 {[%clk 0:01:19]}  Bd7 {[%clk 0:00:54]} 15. Nb5 {[%clk 0:01:12]}  Qb8 {[%clk 0:00:48]} 16. Ne4 {[%clk 0:01:09]}  Be6 {[%clk 0:00:45]} 17. Qd1 {[%clk 0:00:46]}  O-O {[%clk 0:00:42]} 18. Qh5 {[%clk 0:00:46]}  Kg7 {[%clk 0:00:32]} 19. Bc2 {[%clk 0:00:43]}  Rh8 {[%clk 0:00:28]} 20. O-O-O {[%clk 0:00:40]}  f5 {[%clk 0:00:13]} 21. Ng5 {[%clk 0:00:37]}  a6 {[%clk 0:00:12]} 22. Bxf5 {[%clk 0:00:28]}  axb5 {[%clk 0:00:04]} 23. Bxe6 {[%clk 0:00:27]}  fxe6 {[%clk 0:00:05]} 24. Qf7+ {[%clk 0:00:25]}  Kh6 {[%clk 0:00:06]} 25. Qxe6+ {[%clk 0:00:25]}  Kg7 {[%clk 0:00:07]} 26. Qf7+ {[%clk 0:00:23]}  Kh6 {[%clk 0:00:07]} 27. Qe6+ {[%clk 0:00:13]}  Kg7 {[%clk 0:00:08]} 28. Qf7+ {[%clk 0:00:09]}  Kh6 {[%clk 0:00:08]} 29. Qe6+ {[%clk 0:00:04]} 1/2-1/2


[Site "https://www.chess.com"]

[Event "Titled Tuesday Blitz August 15 Early 2023"]
[White "Demidov, Mikhail"]
[Black "Sarana, Alexey"]
[WhiteFideId "4197143"]
[BlackFideId "24133795"]
[WhiteElo "2936"]
[BlackElo "3082"]
[Result "1-0"]
[Round "8"]
[TimeControl "180+1"]
[Date "2023.08.15"]
[WhiteClock "0:00:21"]
[BlackClock "0:00:39"]
[Board "11"]

1. d4 {[%clk 0:03:00]}  e6 {[%clk 0:02:59]} 2. e4 {[%clk 0:02:59]}  b6 {[%clk 0:02:56]} 3. Bd3 {[%clk 0:02:57]}  Bb7 {[%clk 0:02:57]} 4. Nf3 {[%clk 0:02:56]}  c5 {[%clk 0:02:55]} 5. c3 {[%clk 0:02:56]}  Nf6 {[%clk 0:02:54]} 6. Qe2 {[%clk 0:02:54]}  Be7 {[%clk 0:02:54]} 7. O-O {[%clk 0:02:52]}  d6 {[%clk 0:02:55]} 8. Bf4 {[%clk 0:02:49]}  Nbd7 {[%clk 0:02:54]} 9. h3 {[%clk 0:02:43]}  h6 {[%clk 0:02:55]} 10. Bh2 {[%clk 0:02:40]}  Rc8 {[%clk 0:02:46]} 11. Nbd2 {[%clk 0:02:40]}  Qc7 {[%clk 0:02:24]} 12. Rfe1 {[%clk 0:02:32]}  Qb8 {[%clk 0:02:14]} 13. e5 {[%clk 0:02:17]}  dxe5 {[%clk 0:02:14]} 14. dxe5 {[%clk 0:02:09]}  Nd5 {[%clk 0:02:12]} 15. Ne4 {[%clk 0:02:03]}  O-O {[%clk 0:02:12]} 16. Rad1 {[%clk 0:02:00]}  Rfd8 {[%clk 0:02:12]} 17. a3 {[%clk 0:01:58]}  Nf8 {[%clk 0:02:10]} 18. Nd6 {[%clk 0:01:50]}  Bxd6 {[%clk 0:02:02]} 19. exd6 {[%clk 0:01:50]}  Qa8 {[%clk 0:02:01]} 20. Ne5 {[%clk 0:01:35]}  Nf6 {[%clk 0:01:58]} 21. f3 {[%clk 0:01:35]}  Rxd6 {[%clk 0:01:40]} 22. Bh7+ {[%clk 0:01:29]}  Kxh7 {[%clk 0:01:37]} 23. Rxd6 {[%clk 0:01:30]}  Kg8 {[%clk 0:01:30]} 24. Red1 {[%clk 0:01:29]}  c4 {[%clk 0:01:30]} 25. R6d4 {[%clk 0:01:09]}  b5 {[%clk 0:01:27]} 26. Ng4 {[%clk 0:01:05]}  Nd5 {[%clk 0:01:23]} 27. Ne3 {[%clk 0:01:05]}  Ng6 {[%clk 0:01:20]} 28. Nxd5 {[%clk 0:01:04]}  Bxd5 {[%clk 0:01:21]} 29. h4 {[%clk 0:01:02]}  Qc6 {[%clk 0:01:20]} 30. h5 {[%clk 0:01:02]}  Ne7 {[%clk 0:01:21]} 31. Qe5 {[%clk 0:00:55]}  f6 {[%clk 0:01:17]} 32. Qe2 {[%clk 0:00:53]}  Nf5 {[%clk 0:01:16]} 33. R4d2 {[%clk 0:00:51]}  Qb6+ {[%clk 0:01:07]} 34. Kh1 {[%clk 0:00:45]}  Qe3 {[%clk 0:01:07]} 35. Qxe3 {[%clk 0:00:34]}  Nxe3 {[%clk 0:01:08]} 36. Re1 {[%clk 0:00:35]}  Nf5 {[%clk 0:01:09]} 37. Kg1 {[%clk 0:00:32]}  Kf7 {[%clk 0:01:07]} 38. Kf2 {[%clk 0:00:32]}  Ne7 {[%clk 0:00:59]} 39. Ra1 {[%clk 0:00:30]}  Nc6 {[%clk 0:00:51]} 40. Rad1 {[%clk 0:00:26]}  Rd8 {[%clk 0:00:50]} 41. g4 {[%clk 0:00:21]}  Na5 {[%clk 0:00:39]} 42. Bc7 {[%clk 0:00:21]} 1-0


[Site "https://www.chess.com"]

[Event "Titled Tuesday Blitz August 15 Early 2023"]
[White "Terry, Renato"]
[Black "Lazavik, Denis"]
[WhiteFideId "3803457"]
[BlackFideId "13515110"]
[WhiteElo "2935"]
[BlackElo "3047"]
[Result "1/2-1/2"]
[Round "8"]
[TimeControl "180+1"]
[Date "2023.08.15"]
[WhiteClock "0:00:05"]
[BlackClock "0:00:12"]
[Board "12"]

1. Nf3 {[%clk 0:03:00]}  d5 {[%clk 0:02:58]} 2. b3 {[%clk 0:03:00]}  c6 {[%clk 0:02:58]} 3. Bb2 {[%clk 0:03:00]}  Bg4 {[%clk 0:02:57]} 4. h3 {[%clk 0:03:00]}  Bh5 {[%clk 0:02:57]} 5. d3 {[%clk 0:03:01]}  Nd7 {[%clk 0:02:56]} 6. g4 {[%clk 0:03:01]}  Bg6 {[%clk 0:02:56]} 7. Nh4 {[%clk 0:03:01]}  e5 {[%clk 0:02:56]} 8. Nxg6 {[%clk 0:03:01]}  hxg6 {[%clk 0:02:56]} 9. Bg2 {[%clk 0:03:01]}  Bd6 {[%clk 0:02:55]} 10. Nd2 {[%clk 0:03:01]}  Ne7 {[%clk 0:02:51]} 11. e3 {[%clk 0:02:59]}  g5 {[%clk 0:02:50]} 12. c4 {[%clk 0:02:55]}  Nc5 {[%clk 0:02:33]} 13. Qc2 {[%clk 0:02:55]}  Ne6 {[%clk 0:02:32]} 14. a3 {[%clk 0:02:47]}  a5 {[%clk 0:02:28]} 15. Nf3 {[%clk 0:02:39]}  Ng6 {[%clk 0:02:27]} 16. Kf1 {[%clk 0:02:29]}  Qe7 {[%clk 0:02:24]} 17. Qc3 {[%clk 0:02:24]}  Bc7 {[%clk 0:02:16]} 18. Qc2 {[%clk 0:02:04]}  Rd8 {[%clk 0:02:15]} 19. Rc1 {[%clk 0:01:46]}  Kf8 {[%clk 0:02:10]} 20. c5 {[%clk 0:01:43]}  d4 {[%clk 0:02:03]} 21. b4 {[%clk 0:01:42]}  axb4 {[%clk 0:02:02]} 22. axb4 {[%clk 0:01:42]}  Qf6 {[%clk 0:02:03]} 23. Re1 {[%clk 0:01:35]}  dxe3 {[%clk 0:02:00]} 24. fxe3 {[%clk 0:01:20]}  Nh4 {[%clk 0:01:59]} 25. Kf2 {[%clk 0:01:20]}  Nxg2 {[%clk 0:01:54]} 26. Kxg2 {[%clk 0:01:21]}  Rd5 {[%clk 0:01:53]} 27. Rd1 {[%clk 0:01:09]}  Qg6 {[%clk 0:01:42]} 28. Qc4 {[%clk 0:00:59]}  Ke7 {[%clk 0:01:38]} 29. Qe4 {[%clk 0:00:51]}  Qxe4 {[%clk 0:01:25]} 30. dxe4 {[%clk 0:00:52]}  Rxd1 {[%clk 0:01:25]} 31. Rxd1 {[%clk 0:00:53]}  f6 {[%clk 0:01:26]} 32. Ra1 {[%clk 0:00:53]}  Bb8 {[%clk 0:01:20]} 33. Nd2 {[%clk 0:00:42]}  Rd8 {[%clk 0:01:05]} 34. Nc4 {[%clk 0:00:43]}  Kd7 {[%clk 0:01:05]} 35. Kf3 {[%clk 0:00:26]}  Nf8 {[%clk 0:00:57]} 36. Ke2 {[%clk 0:00:20]}  Ng6 {[%clk 0:00:55]} 37. Bc3 {[%clk 0:00:20]}  Rh8 {[%clk 0:00:49]} 38. Rd1+ {[%clk 0:00:19]}  Kc7 {[%clk 0:00:30]} 39. Nb6 {[%clk 0:00:16]}  Rd8 {[%clk 0:00:30]} 40. Na8+ {[%clk 0:00:13]}  Kc8 {[%clk 0:00:29]} 41. Nb6+ {[%clk 0:00:14]}  Kc7 {[%clk 0:00:29]} 42. Ra1 {[%clk 0:00:13]}  Nf8 {[%clk 0:00:25]} 43. Rh1 {[%clk 0:00:12]}  Nd7 {[%clk 0:00:18]} 44. Nc4 {[%clk 0:00:12]}  Rh8 {[%clk 0:00:18]} 45. Kf3 {[%clk 0:00:09]}  Kc8 {[%clk 0:00:18]} 46. Kg2 {[%clk 0:00:08]}  Bc7 {[%clk 0:00:17]} 47. Ra1 {[%clk 0:00:08]}  Kb8 {[%clk 0:00:17]} 48. Rd1 {[%clk 0:00:09]}  Nf8 {[%clk 0:00:17]} 49. Rd2 {[%clk 0:00:08]}  Kc8 {[%clk 0:00:14]} 50. Ra2 {[%clk 0:00:08]}  Kb8 {[%clk 0:00:15]} 51. Rd2 {[%clk 0:00:08]}  Kc8 {[%clk 0:00:11]} 52. Ra2 {[%clk 0:00:05]}  Kb8 {[%clk 0:00:12]} 53. Rd2 {[%clk 0:00:05]} 1/2-1/2


[Site "https://www.chess.com"]